[Event "Hungarian Youth-ch U12 2022"]
[Site "Eger"]
[Date "2022.07.25"]
[Round "3.5"]
[White "Horvath, Matyas Sandor"]
[Black "Lehocz, Jozsef Jr."]
[Result "0-1"]
[ECO "A50"]
[WhiteElo "1431"]
[BlackElo "1919"]
[Annotator "TA"]
[PlyCount "76"]
[EventDate "2022.07.21"]
[EventType "tourn"]
[EventCountry "HUN"]
[SourceTitle "playchess.com"]
[Source "ChessBase"]
[SourceQuality "1"]
[TimeControl "40/5400+30:1800+30"]

{[%evp 12,76,11,-5,26,4,4,-41,39,-18,-5,-16,0,-7,-1,-23,-13,-15,-23,-24,-26,-93,3,2,15,11,11,12,30,-106,-102,-95,-106,-111,-108,-216,-209,-222,-240,-451,-457,-454,-465,-647,-612,-868,-827,-839,-865,-843,-814,-29986,-29987,-29986,-29987,-29988,-29989,-29992,-29991,-29991,-29987,-29987,-29988,-29988,-29989,-29989,-29990]} 1. d4 {[%emt 0:00:32]} Nf6 {[%emt 0:00:38]} 2. c4 {[%emt 0:00:17]} b6 {[%emt 0:02:05]} 3. Nc3 {[%emt 0:03:35]} Bb7 {[%emt 0:00:44]} 4. Bf4 {[%emt 0:01:20]} e6 {[%emt 0:01:29]} 5. a3 {[%emt 0:00:48]} Be7 {[%emt 0:00:43]} 6. Nf3 {[%emt 0:01:39]} O-O {[%emt 0:00:42]} 7. e3 {[%emt 0:01:20]} d5 {[%emt 0:06:53] E12: Queen's Indian: Unusual White 4th moves, 4 a3, 4 Nc3 Bb7 5 a3 and 4 Nc3 Bb7 .} 8. Be2 {[%emt 0:05:03]} Nbd7 {[%emt 0:09:49]} 9. b4 {[%emt 0:11:03] [#]} Bd6 $146 {[%emt 0:04:57]} (9... dxc4 $15 10. Bxc4 c5) ({Predecessor:} 9... dxc4 10. Bxc4 c5 11. bxc5 bxc5 12. dxc5 Nxc5 13. O-O Qxd1 14. Rfxd1 Bxf3 15. gxf3 Nh5 {½-½ (40) Voigt,J-Voss,M freechess.de 2014}) 10. Bg3 {[%emt 0:04:18]} (10. c5 $14 Bxf4 11. exf4) 10... Bxg3 $11 {[%emt 0:01:54]} 11. hxg3 {[%emt 0:01:17]} c5 {[%emt 0:01:13]} 12. bxc5 {[%emt 0:03:10]} bxc5 {[%emt 0:00:38]} 13. O-O {[%emt 0:05:21]} (13. cxd5 {looks sharper.} Qa5 14. Rc1 Nxd5 15. Qa4) 13... Qa5 {[%emt 0:06:48]} 14. Qd2 {[%emt 0:08:21][%cal Oc3d5]} cxd4 {[%emt 0:01:44]} 15. Qxd4 {[%emt 0:03:32]} dxc4 {[%emt 0:01:53]} 16. Bxc4 {[%emt 0:03:16]} (16. Nd2 $1 $11 {remains equal.}) 16... e5 {[%emt 0:01:05]} ({Black should play} 16... Rac8 $17 {aiming for ...e5.} 17. Nb5 Bxf3 18. gxf3 e5) 17. Qd2 $1 {[%emt 0:04:36]} Bxf3 {[%emt 0:02:21]} 18. gxf3 {[%emt 0:01:18]} Rac8 {[%emt 0:00:44] [#]} 19. Ne4 $1 {[%emt 0:02:38]} Qa4 {[%emt 0:06:24] And now ...Nxe4 would win.} (19... Qxd2 20. Nxd2) 20. Nd6 {[%emt 0:03:27]} (20. Bd3 $11) 20... Rxc4 $17 {[%emt 0:03:48] Black converts the advantage convincingly.} 21. Nxc4 {[%emt 0:00:52]} Qxc4 {[%emt 0:00:05]} 22. Rfc1 {[%emt 0:01:56]} Qe6 {[%emt 0:01:38] Strongly threatening ...e4.} 23. Kg2 {[%emt 0:01:07]} (23. e4 $17 {was the only defense.}) 23... e4 $19 {[%emt 0:03:04]} 24. f4 {[%emt 0:02:48]} h5 {[%emt 0:05:37][%cal Oh5h4]} ({Not} 24... Qg4 25. Rc7) 25. Rh1 $2 {[%emt 0:02:54]} (25. Qe2) 25... Nc5 {[%emt 0:01:12]} 26. Qd1 {[%emt 0:03:22]} Nd3 {[%emt 0:01:44]} 27. Rh4 {[%emt 0:01:47]} Rc8 {[%emt 0:02:02]} 28. Rh1 {[%emt 0:02:47]} g6 {[%emt 0:05:04]} 29. Rf1 {[%emt 0:02:18]} Ng4 {[%emt 0:00:37][%cal Bf6g4,Bg4e3,Be3c2,Bc2a1,Ba1c2][%mdl 32]} 30. Qe2 {[%emt 0:00:52]} Rc3 {[%emt 0:00:52] ...Qc8 is the strong threat.} 31. f3 {[%emt 0:02:59] [#]} Rc2 $3 {[%emt 0:00:18][%mdl 512] Black mates.} 32. Qxc2 {[%emt 0:00:45]} Nxe3+ {[%emt 0:00:05] Pair of Knights!} 33. Kg1 {[%emt 0:00:28]} Nxc2 {[%emt 0:00:05]} 34. fxe4 {[%emt 0:00:34]} Qh3 {[%emt 0:00:11]} 35. Rf3 {[%emt 0:01:02]} Nxa1 {[%emt 0:00:44]} 36. Rxd3 {[%emt 0:00:39]} h4 {[%emt 0:00:01]} 37. Kf2 {[%emt 0:00:48]} Qh2+ {[%emt 0:00:01]} 38. Ke3 {[%emt 0:00:57]} Nc2+ {[%emt 0:00:04] Weighted Error Value: White=0.60/Black=0.15 (very precise)} 0-1

[Event "Hungarian Youth-ch U12 2022"]
[Site "Eger"]
[Date "2022.07.25"]
[Round "3.6"]
[White "Torok, Rita"]
[Black "Kiss, Inez"]
[Result "0-1"]
[ECO "B10"]
[WhiteElo "1275"]
[BlackElo "1397"]
[Annotator "NA RC COMBH"]
[PlyCount "124"]
[EventDate "2022.07.21"]
[EventType "tourn"]
[EventCountry "HUN"]
[SourceTitle "playchess.com"]
[Source "ChessBase"]
[SourceQuality "1"]
[TimeControl "40/5400+30:1800+30"]

1. e4 {[%emt 0:00:39]} c6 {[%emt 0:00:33]} 2. Nc3 {[%emt 0:00:21]} d5 {[%emt 0:00:05]} 3. exd5 {[%emt 0:01:56]} cxd5 {[%emt 0:00:07]} 4. d4 {[%emt 0:01:00]} Nc6 {[%emt 0:00:24]} 5. Nf3 {[%emt 0:00:37]} Bg4 {[%emt 0:00:20]} 6. Be2 {[%emt 0:01:02]} e6 {[%emt 0:00:29]} 7. Bd2 {[%emt 0:02:43]} Bxf3 {[%emt 0:01:29]} 8. Bxf3 {[%emt 0:02:13]} Nxd4 {[%emt 0:00:44]} 9. O-O {[%emt 0:02:22]} Nf6 {[%emt 0:00:43]} 10. Bg5 {[%emt 0:01:18]} Nxf3+ {[%emt 0:00:43]} 11. Qxf3 {[%emt 0:00:37]} Be7 {[%emt 0:00:25]} 12. Rfe1 {[%emt 0:05:58]} O-O {[%emt 0:01:11]} 13. Rad1 {[%emt 0:02:07]} h6 {[%emt 0:00:34]} 14. Bxf6 {[%emt 0:02:32]} Bxf6 {[%emt 0:00:25]} 15. h3 {[%emt 0:07:52]} Rc8 {[%emt 0:00:43]} 16. Rd3 {[%emt 0:07:07]} Qb6 {[%emt 0:03:57]} 17. Rb1 {[%emt 0:06:40]} Bxc3 {[%emt 0:08:29]} 18. Rxc3 {[%emt 0:00:49]} Qa5 {[%emt 0:05:04]} 19. a3 {[%emt 0:01:05]} Rxc3 {[%emt 0:01:04]} 20. Qxc3 {[%emt 0:00:32]} Qxc3 {[%emt 0:00:24]} 21. bxc3 {[%emt 0:00:06]} b6 {[%emt 0:00:13]} 22. f3 {[%emt 0:00:41]} Rc8 {[%emt 0:00:15]} 23. Rb3 {[%emt 0:01:37]} e5 {[%emt 0:04:14]} 24. Kf2 {[%emt 0:00:56]} d4 {[%emt 0:02:51]} 25. Ke2 {[%emt 0:01:47]} Rxc3 {[%emt 0:10:08]} 26. Rxc3 {[%emt 0:00:29]} dxc3 {[%emt 0:00:03]} 27. Kd3 {[%emt 0:00:19]} b5 {[%emt 0:02:24]} 28. Kxc3 {[%emt 0:00:09]} a5 {[%emt 0:00:10]} 29. Kd3 {[%emt 0:01:28]} f5 {[%emt 0:01:43]} 30. c4 {[%emt 0:01:53]} b4 {[%emt 0:03:03]} 31. axb4 {[%emt 0:03:07]} axb4 {[%emt 0:00:12]} 32. c5 {[%emt 0:00:24]} Kf7 {[%emt 0:00:16]} 33. Kc4 {[%emt 0:00:19]} Ke6 {[%emt 0:09:59]} 34. Kxb4 {[%emt 0:01:50]} Kd7 {[%emt 0:00:07]} 35. Kb5 {[%emt 0:04:45]} Kc7 {[%emt 0:00:15]} 36. c6 {[%emt 0:00:33]} e4 {[%emt 0:02:14]} 37. fxe4 {[%emt 0:01:15]} fxe4 {[%emt 0:02:33]} 38. Kc4 {[%emt 0:00:00]} Kxc6 {[%emt 0:00:43]} 39. Kd4 {[%emt 0:00:00]} Kd6 {[%emt 0:00:00]} 40. Kxe4 {[%emt 0:00:00]} Ke6 {[%emt 0:00:00]} 41. Kf4 {[%emt 0:02:10]} Kf6 {[%emt 0:01:02]} 42. Kg4 {[%emt 0:01:48]} g6 {[%emt 0:02:29]} 43. Kf4 {[%emt 0:00:57]} g5+ {[%emt 0:00:30]} 44. Kg4 {[%emt 0:00:10]} Kg6 {[%emt 0:00:35]} 45. h4 {[%emt 0:01:56]} h5+ {[%emt 0:09:26]} 46. Kh3 {[%emt 0:00:13]} g4+ {[%emt 0:00:26]} 47. Kh2 {[%emt 0:00:52]} Kf5 {[%emt 0:00:17]} 48. g3 {[%emt 0:00:21]} Ke4 {[%emt 0:00:43]} 49. Kg2 {[%emt 0:00:22]} Ke3 {[%emt 0:00:20]} 50. Kg1 {[%emt 0:06:15]} Kf3 {[%emt 0:00:37]} 51. Kh2 {[%emt 0:00:48]} Kf2 {[%emt 0:00:18]} 52. Kh1 {[%emt 0:00:26]} Kxg3 {[%emt 0:00:09]} 53. Kg1 {[%emt 0:00:25]} Kxh4 {[%emt 0:00:08]} 54. Kg2 {[%emt 0:00:39]} Kg5 {[%emt 0:00:16]} 55. Kh2 {[%emt 0:00:15]} h4 {[%emt 0:00:05]} 56. Kg2 {[%emt 0:00:09]} g3 {[%emt 0:00:07]} 57. Kh3 {[%emt 0:00:18]} Kf4 {[%emt 0:00:10]} 58. Kg2 {[%emt 0:00:29]} Kg4 {[%emt 0:00:15]} 59. Kg1 {[%emt 0:00:26]} h3 {[%emt 0:00:15]} 60. Kh1 {[%emt 0:00:17]} g2+ {[%emt 0:00:04]} 61. Kg1 {[%emt 0:00:36]} Kf3 {[%emt 0:00:39]} 62. Kh2 {[%emt 0:00:24]} Kf2 {[%emt 0:00:16]} 0-1

[Event "Hungarian Youth-ch U12 2022"]
[Site "Eger"]
[Date "2022.07.25"]
[Round "3.7"]
[White "Biro, Beata"]
[Black "Brieber, Dorottya"]
[Result "1-0"]
[ECO "B01"]
[WhiteElo "1551"]
[BlackElo "1242"]
[Annotator "NA RC COMBH"]
[PlyCount "49"]
[EventDate "2022.07.21"]
[EventType "tourn"]
[EventCountry "HUN"]
[SourceTitle "playchess.com"]
[Source "ChessBase"]
[SourceQuality "1"]
[TimeControl "40/5400+30:1800+30"]

1. e4 {[%emt 0:00:34]} d5 {[%emt 0:00:38]} 2. exd5 {[%emt 0:00:22]} Nf6 {[%emt 0:00:12]} 3. Nf3 {[%emt 0:00:48]} Qxd5 {[%emt 0:00:35]} 4. Nc3 {[%emt 0:00:36]} Qc5 {[%emt 0:01:19]} 5. d4 {[%emt 0:00:53]} Qd6 {[%emt 0:00:42]} 6. g3 {[%emt 0:01:31]} Nc6 {[%emt 0:02:38]} 7. Bf4 {[%emt 0:01:49]} Qd8 {[%emt 0:00:46]} 8. Bc4 {[%emt 0:05:38]} a6 {[%emt 0:00:50]} 9. Ng5 {[%emt 0:03:08]} e6 {[%emt 0:00:57]} 10. d5 {[%emt 0:09:11]} h6 {[%emt 0:14:03]} 11. Nxf7 {[%emt 0:01:59]} Kxf7 {[%emt 0:03:44]} 12. dxc6 {[%emt 0:00:11]} Qxd1+ {[%emt 0:00:24]} 13. Rxd1 {[%emt 0:00:09]} bxc6 {[%emt 0:00:14]} 14. Bxc7 {[%emt 0:01:48]} Bc5 {[%emt 0:02:07]} 15. O-O {[%emt 0:01:13]} Re8 {[%emt 0:00:46]} 16. Bd3 {[%emt 0:01:06]} Kg8 {[%emt 0:01:27]} 17. Ne4 {[%emt 0:01:34]} Nxe4 {[%emt 0:00:50]} 18. Bxe4 {[%emt 0:00:34]} Bb7 {[%emt 0:01:02]} 19. Bg6 {[%emt 0:01:16]} Rec8 {[%emt 0:03:31]} 20. Bd6 {[%emt 0:00:10]} Bb6 {[%emt 0:03:52]} 21. Rfe1 {[%emt 0:02:19]} c5 {[%emt 0:06:11]} 22. Bf4 {[%emt 0:02:33]} Rf8 {[%emt 0:03:43]} 23. Rxe6 {[%emt 0:02:33]} Ba7 {[%emt 0:01:23]} 24. Re7 {[%emt 0:01:20]} Bf3 {[%emt 0:01:23]} 25. Rdd7 {[%emt 0:01:39]} 1-0

[Event "Hungarian Youth-ch U12 2022"]
[Site "Eger"]
[Date "2022.07.25"]
[Round "3.8"]
[White "Molnar, Dalma Reka"]
[Black "Balazs, Szabina Zoe"]
[Result "1-0"]
[ECO "C48"]
[WhiteElo "1521"]
[BlackElo "1437"]
[Annotator "NA RC COMBH"]
[PlyCount "65"]
[EventDate "2022.07.21"]
[EventType "tourn"]
[EventCountry "HUN"]
[SourceTitle "playchess.com"]
[Source "ChessBase"]
[SourceQuality "1"]
[TimeControl "40/5400+30:1800+30"]

1. e4 {[%emt 0:00:39]} e5 {[%emt 0:00:43]} 2. Nf3 {[%emt 0:00:13]} Nc6 {[%emt 0:00:23]} 3. Nc3 {[%emt 0:00:20]} Nf6 {[%emt 0:00:40]} 4. Bb5 {[%emt 0:00:46]} Bd6 {[%emt 0:00:33]} 5. O-O {[%emt 0:02:02]} O-O {[%emt 0:01:07]} 6. d3 {[%emt 0:02:35]} h6 {[%emt 0:02:00]} 7. a3 {[%emt 0:04:40]} a6 {[%emt 0:02:15]} 8. Bc4 {[%emt 0:01:15]} Re8 {[%emt 0:03:46]} 9. h3 {[%emt 0:01:12]} Bc5 {[%emt 0:01:15]} 10. Be3 {[%emt 0:07:51]} Ba7 {[%emt 0:01:18]} 11. Bxa7 {[%emt 0:02:03]} Nxa7 {[%emt 0:00:12]} 12. Qd2 {[%emt 0:02:57]} c6 {[%emt 0:02:10]} 13. Bb3 {[%emt 0:03:10]} d6 {[%emt 0:01:45]} 14. d4 {[%emt 0:11:51]} Qc7 {[%emt 0:05:26]} 15. dxe5 {[%emt 0:01:34]} dxe5 {[%emt 0:00:26]} 16. Rad1 {[%emt 0:03:04]} Be6 {[%emt 0:02:53]} 17. Bxe6 {[%emt 0:01:56]} Rxe6 {[%emt 0:00:16]} 18. Rfe1 {[%emt 0:00:48]} Rae8 {[%emt 0:01:26]} 19. Re3 {[%emt 0:03:26]} Nc8 {[%emt 0:01:27]} 20. Rd3 {[%emt 0:03:19]} b6 {[%emt 0:07:49]} 21. Nh4 {[%emt 0:05:00]} b5 {[%emt 0:03:27]} 22. Nf5 {[%emt 0:02:01]} a5 {[%emt 0:01:07]} 23. f3 {[%emt 0:00:45]} Rf8 {[%emt 0:04:49]} 24. Kf1 {[%emt 0:05:22]} Nb6 {[%emt 0:04:41]} 25. b3 {[%emt 0:02:52]} Nc8 {[%emt 0:08:39]} 26. a4 {[%emt 0:06:14]} b4 {[%emt 0:01:13]} 27. Ne2 {[%emt 0:00:45]} c5 {[%emt 0:02:39]} 28. c3 {[%emt 0:02:22]} Qb6 {[%emt 0:05:55]} 29. cxb4 {[%emt 0:02:26]} cxb4 {[%emt 0:00:51]} 30. Rd8 {[%emt 0:03:11]} Ree8 {[%emt 0:00:29]} 31. Rxe8 {[%emt 0:01:24]} Rxe8 {[%emt 0:00:12]} 32. Rc1 {[%emt 0:01:23]} Rd8 {[%emt 0:02:30]} 33. Qxd8+ {[%emt 0:01:58]} 1-0

[Event "Hungarian Youth-ch U12 2022"]
[Site "Eger"]
[Date "2022.07.25"]
[Round "3.9"]
[White "Hangyal, Dora"]
[Black "Balogh, Gerda"]
[Result "0-1"]
[ECO "C45"]
[WhiteElo "1244"]
[BlackElo "1531"]
[Annotator "NA RC COMBH"]
[PlyCount "98"]
[EventDate "2022.07.21"]
[EventType "tourn"]
[EventCountry "HUN"]
[SourceTitle "playchess.com"]
[Source "ChessBase"]
[SourceQuality "1"]
[TimeControl "40/5400+30:1800+30"]

1. e4 {[%emt 0:00:33]} e5 {[%emt 0:00:39]} 2. Nf3 {[%emt 0:00:05]} Nc6 {[%emt 0:00:10]} 3. d4 {[%emt 0:00:05]} exd4 {[%emt 0:00:07]} 4. Nxd4 {[%emt 0:00:06]} Nf6 {[%emt 0:00:05]} 5. Nxc6 {[%emt 0:00:10]} bxc6 {[%emt 0:00:03]} 6. e5 {[%emt 0:00:10]} Qe7 {[%emt 0:00:11]} 7. Qe2 {[%emt 0:00:06]} Nd5 {[%emt 0:00:22]} 8. c4 {[%emt 0:00:14]} Nb6 {[%emt 0:00:10]} 9. Nd2 {[%emt 0:00:18]} g6 {[%emt 0:00:40]} 10. Nf3 {[%emt 0:00:09]} Bg7 {[%emt 0:00:47]} 11. Bf4 {[%emt 0:00:21]} O-O {[%emt 0:00:33]} 12. Rd1 {[%emt 0:08:42]} Re8 {[%emt 0:02:16]} 13. Rd4 {[%emt 0:00:58]} Ba6 {[%emt 0:09:57]} 14. Qc2 {[%emt 0:26:20]} d6 {[%emt 0:05:33]} 15. Re4 {[%emt 0:00:46]} dxe5 {[%emt 0:00:51]} 16. Bg3 {[%emt 0:04:25]} f5 {[%emt 0:09:41]} 17. Bh4 {[%emt 0:07:55]} Qb4+ {[%emt 0:02:11]} 18. Nd2 {[%emt 0:02:59]} fxe4 {[%emt 0:00:13]} 19. a3 {[%emt 0:00:32]} Qf8 {[%emt 0:00:34]} 20. Qb3 {[%emt 0:00:32]} Nd7 {[%emt 0:00:20]} 21. c5+ {[%emt 0:01:20]} Qf7 {[%emt 0:00:13]} 22. Qxf7+ {[%emt 0:00:21]} Kxf7 {[%emt 0:00:09]} 23. Bxa6 {[%emt 0:00:06]} Nxc5 {[%emt 0:00:34]} 24. Bc4+ {[%emt 0:00:09]} Kf8 {[%emt 0:00:15]} 25. b4 {[%emt 0:00:15]} Nd3+ {[%emt 0:00:51]} 26. Kf1 {[%emt 0:01:30]} Nb2 {[%emt 0:01:03]} 27. Bb3 {[%emt 0:00:40]} a5 {[%emt 0:00:33]} 28. Nxe4 {[%emt 0:00:18]} axb4 {[%emt 0:00:35]} 29. Ng5 {[%emt 0:00:50]} Bh6 {[%emt 0:00:56]} 30. Ne6+ {[%emt 0:00:19]} Rxe6 {[%emt 0:00:49]} 31. Bxe6 {[%emt 0:00:11]} bxa3 {[%emt 0:00:17]} 32. Ke2 {[%emt 0:04:44]} Bg7 {[%emt 0:00:29]} 33. Ba2 {[%emt 0:00:29]} c5 {[%emt 0:00:50]} 34. f3 {[%emt 0:01:37]} Na4 {[%emt 0:02:02]} 35. Be1 {[%emt 0:02:00]} Rb8 {[%emt 0:00:23]} 36. Kd3 {[%emt 0:01:12]} Rb2 {[%emt 0:00:14]} 37. Be6 {[%emt 0:02:59]} a2 {[%emt 0:01:20]} 38. Bxa2 {[%emt 0:02:24]} Rxa2 {[%emt 0:00:09]} 39. g3 {[%emt 0:00:38]} Ra1 {[%emt 0:00:48]} 40. Rg1 {[%emt 0:00:00]} Ke7 {[%emt 0:00:00]} 41. Kc4 {[%emt 0:02:55]} Kd6 {[%emt 0:00:27]} 42. Kb5 {[%emt 0:01:30]} Kd5 {[%emt 0:00:44]} 43. h4 {[%emt 0:00:34]} Nb2 {[%emt 0:00:32]} 44. Bf2 {[%emt 0:01:32]} Rxg1 {[%emt 0:00:24]} 45. Bxg1 {[%emt 0:00:08]} c6+ {[%emt 0:00:06]} 46. Ka5 {[%emt 0:01:11]} Bh6 {[%emt 0:00:13]} 47. Kb6 {[%emt 0:00:25]} c4 {[%emt 0:00:07]} 48. g4 {[%emt 0:00:47]} Bd2 {[%emt 0:00:08]} 49. Bc5 {[%emt 0:00:47]} Na4+ {[%emt 0:00:09]} 0-1

[Event "Hungarian Youth-ch U12 2022"]
[Site "Eger"]
[Date "2022.07.26"]
[Round "4.1"]
[White "Horvath, Andras"]
[Black "Lehocz, Jozsef Jr."]
[Result "0-1"]
[ECO "B34"]
[WhiteElo "2251"]
[BlackElo "1919"]
[Annotator "TA"]
[PlyCount "106"]
[EventDate "2022.07.21"]
[EventType "tourn"]
[EventCountry "HUN"]
[SourceTitle "playchess.com"]
[Source "ChessBase"]
[SourceQuality "1"]
[TimeControl "40/5400+30:1800+30"]

{[%evp 17,106,-15,-6,-15,-17,-17,-11,-10,-16,-16,0,-29,-8,-21,-20,-147,-146,-141,-148,-146,-146,-144,-138,-156,-103,-92,-88,-120,-89,-125,-119,-118,-97,-89,-97,-124,-95,-93,-98,-98,-98,-122,-121,-121,-102,-104,-111,-131,-134,-188,-188,-183,-177,-179,-177,-147,0,-181,-75,-177,-181,-125,-42,-107,-115,-115,-109,-439,-216,-216,-216,-216,-216,-208,-208,-259,-67,-67,-67,-67,-67,-1005,-997,-990,-990,-976,-800,-800,-793,-29986,-29987]} 1. e4 {[%emt 0:00:33]} c5 {[%emt 0:00:34]} 2. Nf3 {[%emt 0:00:09]} Nc6 {[%emt 0:00:05]} 3. d4 {[%emt 0:00:19]} cxd4 {[%emt 0:00:10]} 4. Nxd4 {[%emt 0:00:12]} g6 {[%emt 0:00:10]} 5. Nc3 {[%emt 0:04:16]} Bg7 {[%emt 0:00:47]} 6. Be3 {[%emt 0:01:29]} Nf6 {[%emt 0:01:46]} 7. Qd2 {[%emt 0:05:48]} O-O {[%emt 0:00:23]} 8. O-O-O {[%emt 0:02:01]} d5 {[%emt 0:02:46]} 9. f3 {[%emt 0:10:03]} dxe4 {[%emt 0:00:45]} 10. fxe4 {[%emt 0:00:35] B34: Sicilian: Accelerated Dragon with 5 Nc3: sidelines.} Nxd4 {[%emt 0:03:01]} 11. Qxd4 {[%emt 0:07:50] [#]} Qa5 $146 {[%emt 0:01:32] next ...Ng4 is good for Black.} ({Predecessor:} 11... Bg4 12. Qxd8 Rfxd8 13. Rxd8+ Rxd8 14. Bc4 a6 15. Nd5 Nxe4 16. Nxe7+ Kf8 17. Nd5 Be6 {0-1 (36) Golubovskis,M (2302)-Praslov,A (2402) Chess.com INT 2021}) 12. Qc5 $1 {[%emt 0:07:09] The position is equal.} Qxc5 {[%emt 0:02:17]} 13. Bxc5 {[%emt 0:00:11]} Bg4 {[%emt 0:02:50]} 14. Bxe7 {[%emt 0:13:06]} Rfe8 $36 {[%emt 0:00:15][%mdl 2048] Black has some pressure.} 15. Bxf6 {[%emt 0:03:33]} Bxf6 {[%emt 0:00:09]} 16. Re1 {[%emt 0:01:26]} (16. Rd3 $11) 16... Bg5+ $17 {[%emt 0:00:51] This bishop pair is nice.} 17. Kb1 {[%emt 0:01:01]} Bd2 {[%emt 0:00:30] Black is more active.} 18. Bc4 {[%emt 0:04:57]} Bxe1 {[%emt 0:00:24]} 19. Rxe1 {[%emt 0:00:13]} Be6 {[%emt 0:00:53]} 20. Nd5 {[%emt 0:06:04]} Bxd5 {[%emt 0:00:50]} (20... Kg7 $142 {And now ...Rad8 would win.} 21. Rf1 Rac8) 21. Bxd5 {[%emt 0:00:11][%mdl 4096] Endgame KRR-KRB} Re7 {[%emt 0:00:40]} 22. Re3 {[%emt 0:06:13]} Rd8 {[%emt 0:00:49]} 23. Rd3 {[%emt 0:01:17][%cal Od5f7]} Kg7 {[%emt 0:00:56]} 24. c4 {[%emt 0:05:31]} f5 {[%emt 0:01:48]} 25. exf5 {[%emt 0:01:15]} gxf5 {[%emt 0:04:17]} 26. Kc2 {[%emt 0:03:40]} Kf6 {[%emt 0:03:32][%cal Ob7b5]} 27. Kd2 {[%emt 0:01:41]} Rde8 {[%emt 0:07:41]} 28. Bf3 {[%emt 0:00:56] Inhibits Re2+.} b6 {[%emt 0:05:34]} 29. Bh5 {[%emt 0:00:50]} Rc8 {[%emt 0:00:30]} 30. b3 {[%emt 0:00:35]} Kg5 {[%emt 0:02:44]} 31. Bf3 {[%emt 0:00:19]} h5 {[%emt 0:02:56][%cal Bh7h5,Bh5h4][%mdl 32]} 32. Be2 {[%emt 0:02:03]} h4 {[%emt 0:01:09]} 33. Rd5 {[%emt 0:00:29]} (33. h3 $17) 33... Rce8 $19 {[%emt 0:16:19]} 34. Bd3 {[%emt 0:00:26]} Re5 {[%emt 0:01:33]} 35. Rd7 {[%emt 0:00:13]} R8e7 {[%emt 0:03:38]} 36. Rd8 {[%emt 0:00:13]} Re8 {[%emt 0:06:30]} 37. Rd7 {[%emt 0:00:11]} Re1 {[%emt 0:01:03]} (37... Rg8 $19 {and Black stays clearly on top. ...Kf6 is the strong threat.} 38. Be2 Kf4) 38. Rxa7 {[%emt 0:01:05] [#]} (38. Rf7 $17) 38... Rg1 $1 {[%emt 0:01:09]} 39. Kc3 {[%emt 0:00:28]} Re6 {[%emt 0:02:19]} (39... Rg8 $17 40. Rf7 Rxg2 41. Rxf5+ Kg4) 40. Rf7 {[%emt 0:00:00]} (40. g3 $1 $15) 40... Rxg2 {[%emt 0:00:00]} 41. Bxf5 {[%emt 0:09:45]} Ree2 {[%emt 0:04:49]} 42. h3 $2 {[%emt 0:02:34][%mdl 8192]} (42. Bc8 $17 {is more resistant.}) 42... Rgf2 {[%emt 0:05:40]} (42... Ref2 $142 43. Be6 Rg3+ 44. Kb4 Rxf7 45. Bxf7 Rxh3) 43. Bd3 {[%emt 0:03:34]} Rxf7 {[%emt 0:04:08]} ({Weaker is} 43... Rxa2 44. Rg7+ Kf6 45. Rg4 $15 (45. Rg6+ Ke5 $15)) 44. Bxe2 {[%emt 0:00:17] KR-KB} Rf2 {[%emt 0:01:01]} 45. Bg4 {[%emt 0:06:15]} Rxa2 {[%emt 0:00:19]} 46. b4 {[%emt 0:06:00][%cal Bb3b4,Bb4c5][%mdl 32]} Kf4 $2 {[%emt 0:03:54]} (46... Kf6 $19 {aiming for ...Rg2.} 47. Kd4 Rd2+ 48. Ke4 Rb2) 47. c5 $1 $15 {[%emt 0:02:03]} bxc5 {[%emt 0:00:19]} ({Much worse is} 47... Ra3+ 48. Kd4 bxc5+ 49. bxc5 $11) 48. bxc5 {[%emt 0:00:14] Black must now prevent c6.} Ke5 {[%emt 0:00:10]} 49. Kd3 $2 {[%emt 0:03:03][%mdl 8192]} (49. c6 $15) 49... Kd5 {[%emt 0:00:49]} 50. Ke3 {[%emt 0:01:12] [#]} Ra7 $1 {[%emt 0:04:45]} 51. Kf4 {[%emt 0:00:54]} Rg7 {[%emt 0:00:08]} 52. Kf5 {[%emt 0:00:59]} Kxc5 {[%emt 0:00:15]} 53. Kf6 {[%emt 0:00:32] [#]} Rxg4 $1 {[%emt 0:00:27][%mdl 512] Weighted Error Value: White=0.61/Black=0.29 (precise)} 0-1

[Event "Hungarian Youth-ch U12 2022"]
[Site "Eger"]
[Date "2022.07.26"]
[Round "4.2"]
[White "Janosi, Bence"]
[Black "Horvath, Matyas Sandor"]
[Result "1-0"]
[ECO "D79"]
[WhiteElo "1428"]
[BlackElo "1431"]
[Annotator "NA RC COMBH"]
[PlyCount "55"]
[EventDate "2022.07.21"]
[EventType "tourn"]
[EventCountry "HUN"]
[SourceTitle "playchess.com"]
[Source "ChessBase"]
[SourceQuality "1"]
[TimeControl "40/5400+30:1800+30"]

1. d4 {[%emt 0:00:34]} Nf6 {[%emt 0:00:36]} 2. Nf3 {[%emt 0:00:08]} g6 {[%emt 0:00:14]} 3. c4 {[%emt 0:00:09]} Bg7 {[%emt 0:00:14]} 4. g3 {[%emt 0:00:27]} O-O {[%emt 0:00:36]} 5. Bg2 {[%emt 0:00:14]} c6 {[%emt 0:00:22]} 6. O-O {[%emt 0:01:25]} d5 {[%emt 0:00:50]} 7. cxd5 {[%emt 0:01:13]} cxd5 {[%emt 0:01:05]} 8. Nc3 {[%emt 0:01:48]} Nc6 {[%emt 0:06:27]} 9. Re1 {[%emt 0:10:31]} Ne4 {[%emt 0:06:36]} 10. e3 {[%emt 0:06:12]} Bg4 {[%emt 0:06:56]} 11. h3 {[%emt 0:00:57]} Bxf3 {[%emt 0:03:29]} 12. Bxf3 {[%emt 0:01:40]} Nxc3 {[%emt 0:02:34]} 13. bxc3 {[%emt 0:00:26]} e6 {[%emt 0:01:14]} 14. Ba3 {[%emt 0:02:25]} Re8 {[%emt 0:00:55]} 15. Rb1 {[%emt 0:02:24]} Na5 {[%emt 0:03:52]} 16. Bb4 {[%emt 0:03:25]} Nc4 {[%emt 0:03:03]} 17. Qc1 {[%emt 0:06:25]} Rc8 {[%emt 0:07:17]} 18. Be2 {[%emt 0:11:29]} b6 {[%emt 0:06:02]} 19. Bxc4 {[%emt 0:02:05]} Rxc4 {[%emt 0:01:10]} 20. Qd2 {[%emt 0:09:24]} Qc7 {[%emt 0:07:26]} 21. Rec1 {[%emt 0:05:30]} Rc8 {[%emt 0:04:51]} 22. Kg2 {[%emt 0:01:00]} a5 {[%emt 0:01:57]} 23. Ba3 {[%emt 0:00:20]} Rxc3 {[%emt 0:01:06]} 24. Rxc3 {[%emt 0:00:19]} Qxc3 {[%emt 0:00:18]} 25. Rc1 {[%emt 0:00:16]} Qxd2 {[%emt 0:01:31]} 26. Rxc8+ {[%emt 0:00:10]} Bf8 {[%emt 0:00:50]} 27. Bxf8 {[%emt 0:00:08]} f6 {[%emt 0:01:39]} 28. Bb4+ 1-0